bitfinex/quotes_SOLUSD_20241031
["timestamp","ask_amount","ask_price","bid_price","bid_amount"]
[1730352244334,10.18472998,175.96,175.91,10.18472998]
[1730352245154,10.18472998,175.96,175.92,10.18472998]
[1730352245551,10.18472998,176.02,175.95,10.18472998]
[1730352245844,10.18472998,175.99,175.94,10.18472998]
[1730352246043,10.18472998,175.98,175.93,10.18472998]
[1730352246351,10.18472998,175.98,175.91,19.8964]
[1730352246352,10.18472998,175.99,175.94,10.18472998]
[1730352247160,20.0,175.98,175.94,10.18472998]
[1730352247365,30.18472998,175.98,175.93,10.18472998]
[1730352248259,10.18472998,175.97,175.93,10.18472998]
[1730352249352,6.1013,175.99,175.95,10.18472998]
[1730352250652,16.28602998,175.99,175.94,15.86842998]
[1730352250849,6.1013,175.99,175.95,10.18472998]
[1730352251561,16.28602998,175.99,175.94,10.18472998]
[1730352252368,10.18472998,175.98,175.94,10.18472998]
[1730352252573,10.18472998,175.98,175.93,15.86842998]
[1730352252863,10.18472998,175.94,175.88,24.39812998]
[1730352253066,10.18472998,175.93,175.88,24.39812998]
[1730352253441,10.18472998,175.94,175.89,10.18472998]
[1730352254056,15.86842998,175.94,175.89,10.18472998]
[1730352254246,10.18472998,175.93,175.88,30.08352998]
[1730352256752,10.18472998,175.93,175.88,10.18472998]
[1730352256957,15.86882998,175.93,175.88,10.18472998]
[1730352257143,10.18472998,175.93,175.88,15.87032998]
[1730352257661,10.18472998,175.94,175.89,10.18472998]
[1730352258250,10.18472998,175.94,175.89,15.86992998]
[1730352261855,10.18472998,175.9,175.85,10.18472998]
[1730352262855,30.18472998,175.91,175.87,5.686]
[1730352263745,16.5609,175.94,175.89,10.18472998]
[1730352263746,26.74562998,175.94,175.89,10.18472998]
[1730352263951,20.0,175.94,175.9,10.18472998]
[1730352264350,30.18472998,175.94,175.89,10.18472998]
[1730352265654,30.18472998,175.94,175.89,15.87002998]
[1730352267383,10.18472998,175.95,175.9,10.18472998]
[1730352267575,15.86782998,175.96,175.91,10.18472998]
[1730352268350,10.18472998,175.92,175.89,19.8987]
[1730352268547,10.18472998,175.92,175.89,14.2134]
[1730352268773,20.0,175.91,175.89,14.2134]
[1730352269068,20.0,175.93,175.9,10.18472998]
[1730352270171,20.0,175.93,175.89,10.18472998]
[1730352270355,30.18472998,175.93,175.88,10.18472998]
[1730352271675,30.18472998,175.93,175.88,15.87032998]
[1730352272774,20.0,175.93,175.89,10.18472998]
[1730352276059,30.18472998,175.93,175.88,10.18472998]
[1730352276270,35.86872998,175.93,175.88,10.18472998]
[1730352277864,20.0,175.93,175.9,10.18472998]
[1730352278063,20.0,175.94,175.9,10.18472998]
[1730352278860,30.18472998,175.94,175.89,33.96161398]
[1730352279575,35.86852998,175.94,175.89,33.96161398]
[1730352282881,5.6832,175.96,175.92,10.18472998]
[1730352283065,5.6832,175.96,175.93,10.18472998]
[1730352284481,5.6832,175.96,175.92,10.18472998]
[1730352288289,10.18472998,175.99,175.94,10.18472998]
[1730352288477,10.18472998,175.98,175.94,10.18472998]
[1730352289390,10.18472998,175.98,175.93,10.18472998]
[1730352289691,10.18472998,175.97,175.92,10.18472998]
[1730352290571,15.86762998,175.97,175.92,10.18472998]
[1730352293588,5.6829,175.97,175.94,10.18472998]
[1730352293896,15.86712998,175.98,175.94,10.18472998]
[1730352294084,15.86712998,175.98,175.93,10.18472998]
[1730352294692,10.18472998,175.97,175.92,10.18472998]
[1730352295084,15.86752998,175.97,175.92,10.18472998]
[1730352295600,15.86752998,175.97,175.92,15.86902998]
[1730352296672,10.18472998,175.96,175.91,24.39652998]
[1730352297989,10.18472998,175.96,175.91,30.08122998]
[1730352300292,15.86752998,175.97,175.92,10.18472998]
[1730352300486,10.18472998,175.97,175.93,10.18472998]
[1730352301674,10.18472998,175.97,175.93,15.86872998]
[1730352303996,10.18472998,175.99,175.94,10.18472998]
[1730352304198,6.4111,176.01,175.96,10.18472998]
[1730352304199,16.59582998,176.01,175.96,10.18472998]
[1730352304403,6.4111,176.01,175.97,10.18472998]
[1730352305381,22.27732998,176.01,175.96,10.18472998]
[1730352306207,16.59582998,176.01,175.97,10.18472998]
[1730352308502,14.399,176.07,175.99,10.18472998]
[1730352308503,10.18472998,176.03,175.99,10.18472998]
[1730352308700,20.0,176.03,175.99,10.18472998]
[1730352309004,10.18472998,176.04,175.99,10.18472998]
[1730352309201,10.18472998,176.0,175.94,10.18472998]
[1730352309501,10.18472998,175.98,175.93,58.49912998]
[1730352309687,10.18472998,175.98,175.94,10.18472998]
[1730352310094,10.18472998,175.98,175.94,15.86832998]
[1730352311692,10.18472998,175.99,175.94,15.86832998]
[1730352311886,10.18472998,176.0,175.95,10.18472998]
[1730352313905,10.18472998,176.0,175.95,15.86792998]
[1730352314108,10.18472998,176.0,175.95,5.6832]
[1730352314406,10.18472998,175.99,175.95,5.6832]
[1730352316892,10.18472998,176.0,175.95,10.18472998]
[1730352320313,10.18472998,176.0,175.96,5.6831]
[1730352322916,10.18472998,175.99,175.94,10.18472998]
[1730352323104,10.18472998,176.0,175.95,10.18472998]
[1730352324605,10.18472998,176.0,175.96,5.6831]
[1730352325814,5.6812,176.02,175.96,5.6831]
[1730352325815,10.18472998,175.99,175.96,5.6831]
[1730352326598,10.18472998,175.99,175.95,30.07652998]
[1730352328006,10.18472998,175.99,175.95,19.8918]
[1730352329001,10.18472998,175.97,175.95,19.8918]
[1730352329324,10.18472998,175.96,175.91,30.08032998]
[1730352329526,10.18472998,175.95,175.91,30.08032998]
[1730352329828,10.18472998,175.94,175.91,19.8956]
[1730352330413,10.18472998,175.95,175.91,19.8956]
[1730352332819,10.18472998,175.95,175.91,14.2112]
[1730352333025,10.18472998,175.94,175.91,14.2112]
[1730352334018,10.18472998,175.94,175.91,19.8959]
[1730352334405,10.18472998,175.94,175.91,14.2112]
[1730352334603,10.18472998,175.93,175.91,14.2112]
[1730352335101,10.18472998,175.93,175.89,5.6852]
[1730352336921,10.18472998,175.93,175.89,30.08332998]
[1730352344006,10.18472998,175.93,175.89,14.2134]
[1730352345228,10.18472998,175.93,175.89,19.8987]
[1730352345412,10.18472998,175.92,175.89,14.2134]
[1730352346522,10.18472998,175.91,175.89,14.2134]
[1730352346714,10.18472998,175.9,175.86,19.9018]
[1730352346916,10.18472998,175.89,175.86,19.9018]
[1730352347713,10.18472998,175.9,175.86,19.9018]
[1730352350129,10.18472998,175.89,175.84,10.18472998]
[1730352350335,10.18472998,175.9,175.85,10.18472998]
[1730352351342,10.18472998,175.9,175.86,5.6863]
[1730352352040,10.18472998,175.91,175.86,30.08682998]
[1730352352624,10.18472998,175.92,175.87,33.96161398]
[1730352352813,10.18472998,175.92,175.88,10.18472998]
[1730352353618,10.18472998,175.92,175.89,5.6853]
[1730352353827,10.18472998,175.91,175.88,5.6856]
[1730352355039,10.18472998,175.91,175.86,24.40052998]
[1730352355231,10.18472998,175.91,175.87,5.6859]
[1730352356133,10.18472998,175.91,175.87,10.18472998]
[1730352357218,10.18472998,175.91,175.87,15.87052998]
[1730352359139,10.18472998,175.92,175.87,15.87052998]
[1730352360049,10.18472998,175.93,175.88,10.18472998]
[1730352361449,10.18472998,175.93,175.89,5.6853]
[1730352363740,5.6837,175.94,175.87,14.215]
[1730352363741,10.18472998,175.9,175.87,14.215]
[1730352363946,10.18472998,175.9,175.87,19.9009]
[1730352365149,10.18472998,175.9,175.85,10.18472998]
[1730352366749,10.18472998,175.9,175.86,5.6863]
[1730352367551,10.18472998,175.89,175.85,14.2159]
[1730352367861,10.18472998,175.88,175.85,14.2159]
[1730352368339,10.18472998,175.87,175.85,14.2159]
[1730352369328,10.18472998,175.88,175.85,14.2159]
[1730352372058,5.685,175.9,175.8,5.9275834]
[1730352372059,10.18472998,175.86,175.81,30.09232998]
[1730352372350,11.8929,175.89,175.81,30.09232998]
[1730352372351,10.18472998,175.87,175.82,10.18472998]
[1730352372551,10.18472998,175.86,175.81,30.09232998]
[1730352372737,10.18472998,175.85,175.81,19.9076]
[1730352373654,5.6859,175.88,175.81,19.9076]
[1730352373655,10.18472998,175.84,175.81,19.9076]
[1730352374255,10.18472998,175.84,175.81,14.2197]
[1730352374435,10.18472998,175.83,175.81,14.2197]
[1730352376131,10.18472998,175.84,175.81,14.2197]
[1730352378125,10.18472998,175.84,175.79,10.18472998]
[1730352379433,10.18472998,175.84,175.79,15.87322998]
[1730352380246,10.18472998,175.84,175.79,30.09472998]
[1730352382332,10.18472998,175.85,175.79,30.09472998]
[1730352382644,10.18472998,175.87,175.82,10.18472998]
[1730352382838,21.8502,175.89,175.79,19.91]
[1730352382839,10.18472998,175.88,175.83,10.18472998]
[1730352383046,20.0,175.85,175.83,10.18472998]
[1730352383649,20.0,175.85,175.82,10.18472998]
[1730352383838,10.18472998,175.87,175.82,10.18472998]
[1730352384331,10.18472998,175.88,175.83,30.09022998]
[1730352384538,6.2076,175.89,175.84,10.18472998]
[1730352384943,10.18472998,175.9,175.84,10.18472998]
[1730352385161,10.18472998,175.9,175.85,10.18472998]
[1730352386459,10.18472998,175.9,175.86,5.6863]
[1730352388648,10.18472998,175.9,175.85,10.18472998]
[1730352388849,10.18472998,175.9,175.85,15.87132998]
[1730352389762,10.18472998,175.9,175.85,30.08792998]
[1730352390156,10.18472998,175.89,175.85,19.9032]
[1730352392950,10.18472998,175.88,175.85,19.9032]
[1730352396670,10.18472998,175.89,175.85,19.9032]
[1730352397249,10.18472998,175.9,175.85,30.08792998]
[1730352397663,10.18472998,175.9,175.85,19.9032]
[1730352398967,10.18472998,175.89,175.85,19.9032]
[1730352401272,10.18472998,175.9,175.85,19.9032]
[1730352402497,10.18472998,175.89,175.85,19.9032]
[1730352408989,10.18472998,175.9,175.85,10.18472998]
[1730352410281,10.18472998,175.9,175.86,5.6863]
[1730352414763,10.18472998,175.9,175.86,15.87102998]
[1730352414972,10.18472998,175.91,175.87,10.18472998]
[1730352415963,10.18472998,175.91,175.87,15.87062998]
[1730352416685,10.18472998,175.91,175.87,5.6859]
[1730352417393,10.18472998,175.91,175.87,19.9009]
[1730352422794,10.18472998,175.9,175.87,19.9009]
[1730352423003,10.18472998,175.91,175.87,19.9009]
[1730352425492,10.18472998,175.89,175.87,14.215]
[1730352425989,10.18472998,175.89,175.84,10.18472998]
[1730352427179,10.18472998,175.89,175.85,10.18472998]
[1730352427687,10.18472998,175.89,175.86,5.6863]
[1730352431772,10.18472998,175.9,175.86,5.6863]
[1730352433592,10.18472998,175.9,175.86,10.18472998]
[1730352433892,10.18472998,175.88,175.83,15.87202998]
[1730352434274,10.18472998,175.85,175.81,10.18472998]
[1730352434596,10.18472998,175.85,175.8,15.87292998]
[1730352435486,10.18472998,175.86,175.82,10.18472998]
[1730352435681,30.18472998,175.87,175.82,10.18472998]
[1730352435880,10.18472998,175.86,175.82,10.18472998]
[1730352436997,10.18472998,175.86,175.82,15.87212998]
[1730352437505,10.18472998,175.86,175.82,5.6874]
[1730352439502,10.18472998,175.86,175.8,14.2207]
[1730352439503,10.18472998,175.85,175.8,24.40542998]
[1730352439796,10.18472998,175.85,175.8,30.09362998]
[1730352440390,10.18472998,175.85,175.8,24.40542998]
[1730352441499,10.18472998,175.85,175.8,30.09362998]
[1730352441699,10.18472998,175.85,175.8,19.9089]
[1730352441700,10.18472998,175.83,175.8,19.9089]
[1730352442004,10.18472998,175.82,175.8,14.2207]
[1730352442901,10.18472998,175.83,175.8,19.9089]
[1730352443407,10.18472998,175.84,175.8,19.9089]
[1730352443585,10.18472998,175.85,175.8,30.09362998]
[1730352443983,10.18472998,175.86,175.81,10.18472998]
[1730352444184,16.23592998,175.88,175.83,10.18472998]
[1730352444576,16.23592998,175.88,175.8,19.9089]
[1730352444912,10.18472998,175.87,175.82,10.18472998]
[1730352445613,10.18472998,175.87,175.83,5.6873]
[1730352449209,10.18472998,175.87,175.83,19.9055]
[1730352449510,10.18472998,175.86,175.83,19.9055]
[1730352450218,10.18472998,175.86,175.81,10.18472998]
[1730352452198,10.18472998,175.83,175.78,10.18472998]
[1730352452402,10.18472998,175.82,175.77,10.18472998]
[1730352453207,10.18472998,175.81,175.76,30.09802998]
[1730352454406,10.18472998,175.8,175.76,30.09802998]
[1730352457008,10.18472998,175.8,175.76,14.2238]
[1730352457898,10.18472998,175.79,175.76,14.2238]
[1730352461921,10.18472998,175.81,175.76,30.09802998]
[1730352462120,20.0,175.8,175.76,30.09802998]
[1730352462314,30.18472998,175.8,175.76,19.9133]
[1730352463121,10.18472998,175.8,175.76,19.9133]
[1730352466303,15.87262998,175.81,175.76,24.40852998]
[1730352467338,10.18472998,175.8,175.76,14.2238]
[1730352473536,10.18472998,175.81,175.76,30.09802998]
[1730352473914,15.87262998,175.81,175.76,30.09802998]
[1730352475133,5.6876,175.82,175.78,10.18472998]
[1730352475318,15.87202998,175.83,175.78,10.18472998]
[1730352475709,10.18472998,175.82,175.77,33.96161398]
[1730352476430,15.87242998,175.82,175.77,39.65071398]
[1730352480132,10.18472998,175.81,175.77,39.65071398]
[1730352482016,15.87232998,175.82,175.77,39.65071398]
[1730352483920,10.18472998,175.83,175.78,10.18472998]
[1730352484121,10.18472998,175.82,175.77,39.65071398]
[1730352485733,15.87232998,175.82,175.77,39.65071398]
[1730352494429,10.18472998,175.83,175.77,39.65071398]
[1730352494828,10.18472998,175.83,175.78,23.776884]
[1730352495045,10.18472998,175.83,175.78,33.96161398]
[1730352495943,15.87212998,175.83,175.78,33.96161398]
[1730352496140,15.87212998,175.83,175.78,23.776884]
[1730352497243,5.6874,175.83,175.79,10.18472998]
[1730352497429,15.87172998,175.84,175.79,10.18472998]
[1730352501056,10.18472998,175.86,175.81,10.18472998]
[1730352501231,10.18472998,175.88,175.83,10.18472998]
[1730352502548,10.18472998,175.88,175.83,15.87192998]
[1730352504356,22.4027,175.91,175.81,14.219]
[1730352504357,10.18472998,175.91,175.87,10.18472998]
[1730352505043,15.86912998,175.92,175.87,10.18472998]
[1730352505243,10.18472998,175.91,175.87,10.18472998]
[1730352510449,10.18472998,175.91,175.87,15.87072998]
[1730352511644,10.18472998,175.91,175.86,10.18472998]
[1730352512254,10.18472998,175.93,175.89,10.18472998]
[1730352513042,15.86872998,175.94,175.89,10.18472998]
[1730352513865,10.18472998,175.93,175.88,15.87012998]
[1730352515081,10.18472998,175.92,175.88,15.87012998]
[1730352516749,10.18472998,175.9,175.87,19.9006]
[1730352517348,10.18472998,175.91,175.87,19.9006]
[1730352522472,10.18472998,175.91,175.87,10.18472998]
[1730352523278,10.18472998,175.91,175.86,10.18472998]
[1730352524153,10.18472998,175.91,175.87,5.686]
[1730352525372,10.18472998,175.9,175.87,5.686]
[1730352528058,10.18472998,175.9,175.85,10.18472998]
[1730352528252,10.18472998,175.91,175.86,10.18472998]
[1730352529479,10.18472998,175.91,175.87,5.686]
[1730352531856,10.18472998,175.9,175.85,10.18472998]
[1730352534483,10.18472998,175.9,175.86,19.9021]
[1730352539181,10.18472998,175.87,175.82,38.62282998]
[1730352539362,10.18472998,175.86,175.83,19.9055]
[1730352541085,10.18472998,175.85,175.83,19.9055]
[1730352541382,10.18472998,175.84,175.83,14.2182]
[1730352541584,10.18472998,175.85,175.83,14.2182]
[1730352543360,10.18472998,175.84,175.78,10.18472998]
[1730352543576,10.18472998,175.81,175.76,30.09812998]
[1730352544790,10.18472998,175.81,175.77,23.776884]
[1730352545116,10.18472998,175.81,175.78,5.6889]
[1730352546290,20.0,175.78,175.76,14.2239]
[1730352546500,30.18472998,175.78,175.76,14.2239]
[1730352547892,10.18472998,175.78,175.76,14.2239]
[1730352548498,10.18472998,175.79,175.76,14.2239]
[1730352556072,10.18472998,175.78,175.76,14.2239]
[1730352557182,10.18472998,175.78,175.73,15.87492998]
[1730352557395,10.18472998,175.78,175.74,23.776884]
[1730352557994,30.18472998,175.75,175.68,10.18472998]
[1730352558198,10.18472998,175.73,175.68,10.18472998]
[1730352559267,10.18472998,175.73,175.68,15.87652998]
[1730352559779,10.18472998,175.73,175.69,23.776884]
[1730352560582,10.18472998,175.73,175.69,29.468584]
[1730352560867,10.18472998,175.72,175.69,23.776884]
[1730352561877,10.18472998,175.73,175.69,29.468684]
[1730352562073,10.18472998,175.73,175.69,39.65341398]
[1730352564703,10.18472998,175.74,175.69,39.65341398]
[1730352567400,10.18472998,175.71,175.66,10.18472998]
[1730352567694,30.18472998,175.7,175.65,30.11062998]
[1730352569089,30.18472998,175.7,175.66,23.776884]
[1730352569309,30.18472998,175.7,175.65,30.11062998]
[1730352569477,35.87622998,175.7,175.65,30.11062998]
[1730352570187,10.18472998,175.69,175.65,14.2328]
[1730352570389,10.18472998,175.67,175.62,10.18472998]
[1730352571382,15.87732998,175.67,175.62,10.18472998]
[1730352573102,10.18472998,175.66,175.61,24.42032998]
[1730352573403,10.18472998,175.66,175.62,10.18472998]
[1730352574686,30.18472998,175.63,175.58,10.18472998]
[1730352575128,20.0,175.63,175.59,10.18472998]
[1730352576304,10.18472998,175.67,175.62,33.96161398]
[1730352576613,6.0274,175.7,175.64,10.18472998]
[1730352576614,10.18472998,175.68,175.64,10.18472998]
[1730352576782,10.18472998,175.67,175.62,10.18472998]
[1730352579016,10.18472998,175.67,175.63,5.6937]
[1730352579320,10.18472998,175.67,175.63,15.87842998]
[1730352580719,10.18472998,175.68,175.63,30.11282998]
[1730352580900,10.18472998,175.69,175.64,10.18472998]
[1730352581719,16.21212998,175.7,175.65,10.18472998]
[1730352581927,6.0274,175.7,175.66,10.18472998]
[1730352582403,16.21212998,175.7,175.65,10.18472998]
[1730352583527,10.18472998,175.69,175.65,10.18472998]
[1730352584206,10.18472998,175.69,175.65,15.87762998]
[1730352584416,10.18472998,175.69,175.65,5.6929]
[1730352588023,10.18472998,175.67,175.64,14.2336]
[1730352588323,10.18472998,175.65,175.64,14.2336]
[1730352591415,10.18472998,175.66,175.64,14.2336]
[1730352592234,10.18472998,175.67,175.62,10.18472998]
[1730352593030,10.18472998,175.68,175.63,10.18472998]
[1730352593241,10.18472998,175.68,175.63,33.96161398]
[1730352594409,10.18472998,175.68,175.64,5.6934]
[1730352596003,10.18472998,175.68,175.63,48.19601398]
[1730352596433,10.18472998,175.67,175.63,48.19601398]
[1730352600335,10.18472998,175.71,175.66,33.96161398]
[1730352600545,10.18472998,175.72,175.67,33.96161398]
[1730352601041,10.18472998,175.71,175.67,23.776884]
[1730352601226,10.18472998,175.7,175.67,23.776884]
[1730352604425,10.18472998,175.71,175.67,43.700284]
[1730352604631,10.18472998,175.72,175.67,53.88501398]
[1730352605018,10.18472998,175.73,175.69,23.776884]
[1730352606223,10.18472998,175.72,175.69,23.776884]
[1730352610945,10.18472998,175.71,175.67,14.2312]
[1730352611242,10.18472998,175.71,175.67,23.776884]
[1730352611761,5.6911,175.72,175.68,10.18472998]
[1730352612940,15.87582998,175.72,175.68,10.18472998]
[1730352614729,10.18472998,175.73,175.68,10.18472998]
[1730352615745,15.87542998,175.73,175.68,10.18472998]
[1730352618162,10.18472998,175.69,175.62,24.41952998]
[1730352618349,10.18472998,175.66,175.62,14.2348]
[1730352619360,0.1,175.71,175.59,15.87942998]
[1730352619361,10.18472998,175.64,175.59,15.87942998]
[1730352619569,10.18472998,175.62,175.58,19.9332]
[1730352619745,10.18472998,175.63,175.58,30.11792998]
[1730352620663,10.18472998,175.6,175.56,10.18472998]
[1730352620874,10.18472998,175.59,175.55,10.18472998]
[1730352621570,10.18472998,175.59,175.54,30.12232998]
[1730352622241,10.18472998,175.58,175.54,14.2413]
[1730352622448,10.18472998,175.57,175.54,14.2413]
[1730352624065,10.18472998,175.56,175.52,0.5959888]
[1730352624368,10.18472998,175.56,175.52,6.2931888]
[1730352625862,10.18472998,175.57,175.53,10.18472998]
[1730352626051,10.18472998,175.58,175.54,10.18472998]
[1730352626370,30.18472998,175.55,175.52,14.8392888]
[1730352626573,10.18472998,175.54,175.52,14.8392888]
[1730352627068,30.18472998,175.55,175.52,14.8392888]
[1730352628352,30.18472998,175.55,175.52,0.5959888]
[1730352628550,28.67890188,175.55,175.52,0.5959888]
[1730352629568,10.18472998,175.59,175.54,10.18472998]
[1730352631279,10.18472998,175.58,175.54,10.18472998]
[1730352632077,10.18472998,175.58,175.54,15.88132998]
[1730352632460,10.18472998,175.59,175.55,23.776884]
[1730352632667,10.18472998,175.59,175.55,33.96161398]
[1730352633061,10.18472998,175.6,175.55,33.96161398]
[1730352633264,6.5745,175.61,175.55,33.96161398]
[1730352633265,16.75922998,175.61,175.56,10.18472998]
[1730352633585,25.71372998,175.62,175.57,10.18472998]
[1730352633754,10.18472998,175.61,175.56,10.18472998]
[1730352633958,30.18472998,175.61,175.57,5.6957]
[1730352635272,20.0,175.57,175.54,14.2417]
[1730352635474,10.18472998,175.55,175.54,14.2417]
[1730352635662,10.18472998,175.56,175.54,14.2417]
[1730352636379,10.18472998,175.58,175.54,19.9384]
[1730352640795,10.18472998,175.59,175.55,23.776884]
[1730352642285,30.18472998,175.61,175.56,10.18472998]
[1730352642475,20.0,175.61,175.57,10.18472998]
[1730352642992,10.18472998,175.58,175.54,5.6966]
[1730352643482,10.18472998,175.59,175.54,30.12302998]
[1730352645467,30.18472998,175.61,175.56,10.18472998]
[1730352645784,10.18472998,175.6,175.55,33.96161398]
[1730352646606,10.18472998,175.6,175.55,39.65761398]
[1730352647191,10.18472998,175.6,175.55,53.89851398]
[1730352648193,20.0,175.61,175.56,10.18472998]
[1730352648370,30.18472998,175.61,175.56,10.18472998]
[1730352648574,10.18472998,175.61,175.56,30.12062998]
[1730352651394,16.53762998,175.65,175.6,10.18472998]
[1730352652372,6.3529,175.65,175.61,10.18472998]
[1730352652888,10.18472998,175.62,175.58,14.2385]
[1730352653090,10.18472998,175.61,175.56,15.88072998]
[1730352657779,10.18472998,175.64,175.59,10.18472998]
[1730352658678,10.18472998,175.61,175.56,30.12082998]
[1730352658880,30.18472998,175.6,175.56,19.9361]
[1730352659096,10.18472998,175.6,175.56,19.9361]
[1730352659793,10.18472998,175.59,175.56,19.9361]
[1730352660295,10.18472998,175.57,175.52,6.2931888]
[1730352660494,10.18472998,175.54,175.52,6.2931888]
[1730352661803,10.18472998,175.53,175.52,0.5959888]
[1730352662102,10.18472998,175.56,175.52,0.5959888]
[1730352662308,16.78752998,175.58,175.53,10.18472998]
[1730352662477,30.18472998,175.57,175.53,10.18472998]
[1730352662979,30.18472998,175.57,175.53,23.776884]
[1730352663378,20.0,175.57,175.53,33.96161398]
[1730352664875,20.0,175.57,175.53,39.65861398]
[1730352665075,10.18472998,175.56,175.52,0.5959888]
[1730352665289,20.0,175.55,175.52,0.5959888]
[1730352665594,20.0,175.57,175.54,10.18472998]
[1730352665794,12.2364,175.65,175.54,16.2388]
[1730352665980,12.2364,175.65,175.61,10.18472998]
[1730352666798,22.42112998,175.65,175.6,10.18472998]
[1730352666977,6.5433,175.65,175.61,10.18472998]
[1730352667177,20.0,175.65,175.62,10.18472998]
[1730352667982,6.5433,175.69,175.63,10.18472998]
[1730352667983,5.6924,175.67,175.63,10.18472998]
[1730352669196,20.0,175.66,175.63,10.18472998]
[1730352669399,20.0,175.66,175.62,10.18472998]
[1730352669600,30.18472998,175.66,175.61,15.87892998]
[1730352671689,20.0,175.66,175.62,10.18472998]
[1730352671896,15.87712998,175.67,175.62,10.18472998]
[1730352672095,20.0,175.66,175.62,10.18472998]
[1730352673595,6.5433,175.69,175.65,10.18472998]
[1730352673796,31.75882998,175.7,175.65,10.18472998]
[1730352675104,30.18472998,175.69,175.64,33.96161398]
[1730352676283,30.18472998,175.69,175.64,39.65491398]
[1730352676595,30.18472998,175.69,175.64,29.470184]
[1730352676911,10.18472998,175.68,175.64,29.470184]
[1730352680005,30.18472998,175.69,175.64,39.65491398]
[1730352680695,20.0,175.69,175.64,39.65491398]
[1730352681307,30.18472998,175.69,175.64,39.65491398]
[1730352682813,10.18472998,175.7,175.65,10.18472998]
[1730352683114,20.0,175.69,175.65,10.18472998]
[1730352683811,30.18472998,175.69,175.65,10.18472998]
[1730352684330,30.18472998,175.69,175.64,53.88851398]
[1730352687631,10.18472998,175.66,175.62,5.6938]
[1730352688204,10.18472998,175.65,175.6,10.18472998]
[1730352688529,10.18472998,175.64,175.59,10.18472998]
[1730352689230,10.18472998,175.65,175.6,10.18472998]
[1730352689610,15.87812998,175.65,175.6,10.18472998]
[1730352690027,10.18472998,175.64,175.59,10.18472998]
[1730352690716,20.0,175.66,175.62,10.18472998]
[1730352692237,25.6928,175.66,175.62,10.18472998]
[1730352692531,20.0,175.66,175.62,15.87872998]
[1730352692713,20.0,175.66,175.62,10.18472998]
[1730352693104,20.0,175.66,175.61,5.6944]
[1730352693105,35.87752998,175.66,175.61,15.87912998]
[1730352697241,10.18472998,175.68,175.63,10.18472998]
[1730352697535,10.18472998,175.7,175.65,10.18472998]
[1730352698528,15.87622998,175.7,175.65,10.18472998]
[1730352698724,10.18472998,175.69,175.65,10.18472998]
[1730352698914,30.18472998,175.69,175.65,10.18472998]
[1730352702136,20.0,175.69,175.66,10.18472998]
[1730352703038,20.0,175.69,175.68,10.18472998]
[1730352703356,20.0,175.7,175.68,10.18472998]
[1730352703645,10.18472998,175.74,175.69,10.18472998]
[1730352704017,21.87552998,175.75,175.7,10.18472998]
[1730352704245,20.0,175.74,175.7,10.18472998]
[1730352707246,20.0,175.74,175.69,10.18472998]
[1730352707431,25.6902,175.74,175.69,10.18472998]
[1730352708043,20.0,175.74,175.71,10.18472998]
[1730352708551,22.1649,175.77,175.73,10.18472998]
[1730352708841,10.18472998,175.79,175.74,10.18472998]
[1730352709045,15.87332998,175.79,175.74,10.18472998]
[1730352709221,10.18472998,175.78,175.73,10.18472998]
[1730352709737,10.18472998,175.78,175.72,15.87542998]
[1730352709920,20.0,175.77,175.73,10.18472998]
[1730352711651,20.0,175.77,175.71,14.2277]
[1730352711652,20.0,175.77,175.74,10.18472998]
[1730352712325,20.0,175.77,175.73,10.18472998]
[1730352712527,20.0,175.77,175.74,10.18472998]
[1730352712726,20.0,175.77,175.73,10.18472998]
[1730352712930,20.0,175.78,175.73,15.87502998]
[1730352714328,35.87372998,175.78,175.73,15.87502998]
[1730352714541,35.87372998,175.78,175.73,10.18472998]
[1730352715650,35.87372998,175.78,175.75,10.18472998]
[1730352715651,25.689,175.78,175.75,10.18472998]
[1730352715837,25.689,175.78,175.74,10.18472998]
[1730352719249,5.689,175.78,175.74,10.18472998]
[1730352721457,5.689,175.78,175.73,10.18472998]
[1730352721963,5.689,175.78,175.74,10.18472998]
[1730352722545,10.18472998,175.79,175.74,10.18472998]
[1730352722944,20.0,175.78,175.75,10.18472998]
[1730352723459,22.50842998,175.8,175.75,10.18472998]
[1730352723640,20.0,175.79,175.75,10.18472998]
[1730352725766,30.18472998,175.79,175.74,10.18472998]
[1730352725946,35.87332998,175.79,175.74,10.18472998]
[1730352726443,25.6886,175.79,175.75,10.18472998]
[1730352728651,35.87332998,175.79,175.74,10.18472998]
[1730352728852,10.18472998,175.78,175.73,15.87492998]
[1730352730976,35.87332998,175.79,175.74,10.18472998]
[1730352732081,10.18472998,175.78,175.73,15.87502998]
[1730352734850,35.87332998,175.79,175.73,15.87502998]
[1730352736260,35.87332998,175.79,175.74,10.18472998]
[1730352738584,25.6886,175.79,175.75,10.18472998]